Cogmind - Beta 16 @@@ ROGUE MODE // 2025.11.06 @ 22:00:35 Player: Blanco! Result: Destroyed by Y-45 Defender with Beam Rifle Performance ------------- Evolutions (2) 1000 Regions Visited (4) 800 Robots Destroyed (14) 70 Value Destroyed (399) 399 Prototype IDs (0) 0 Alien Tech Used (0) 0 Bonus (0) 0 TOTAL SCORE: 2269 Bonus ------- None Cogmind --------- Core Integrity 0/550 Matter 300/300 Energy 100/100 System Corruption 0% Temperature Cool (18) Movement Core (700) Ox13 Location -8/Materials Parts ------- > --- POWER (2) -------- (None) > --- PROPULSION (4) --- (None) > --- UTILITY (3) ------ High-capacity Storage Unit > --- WEAPON (2) ------- (None) > --- INVENTORY (20) --- Small Storage Unit Peak State ------------ > --- POWER ------------ Light Ion Engine Improved Ion Engine > --- PROPULSION ------- Carbon-fiber Leg Carbon-fiber Leg Carbon-fiber Leg VSS Leg > --- UTILITY ---------- High-capacity Storage Unit Hardened Medium Armor Plating Hardened Medium Armor Plating > --- WEAPON ----------- Medium Laser Light Cannon > --- INVENTORY -------- VSS Leg VSS Leg Small Storage Unit Heavy Armor Plating Hardened Medium Armor Plating Hardened Medium Armor Plating Light Assault Rifle [Rating: 26] Favorites ----------- Power Ion Engine Engine Ion Engine Power Core Light Nuclear Core Propulsion Carbon-fiber Leg Leg Carbon-fiber Leg Wheel Compact Wheel Utility Hardened Medium Armor Plating Storage Small Storage Unit Protection Hardened Medium Armor Plating Weapon Light Assault Rifle Energy Gun Medium Laser Ballistic Gun Light Assault Rifle Ballistic Cannon Light Cannon Launcher Grenade Launcher Special Melee Weapon Improved Datajack Build | -11 -10 -10 -9 -8 ------- Run | Yrd Mat Min Mat Mat Slots Evolved 4 | . . . 2 2 Power 1 | . . . . 1 Propulsion 2 | . . . 2 . Utility 1 | . . . . 1 Weapon . | . . . . . Parts Attached 32 | 6 2 1 11 12 Power 5 | 1 . . 2 2 Engine 4 | 1 . . 2 1 Core 1 | . . . . 1 Reactor . | . . . . . Propulsion 11 | 2 . . 6 3 Treads . | . . . . . Leg 8 | . . . 5 3 Wheel 3 | 2 . . 1 . Hover . | . . . . . Flight . | . . . . . Utility 9 | 1 1 . 2 5 Device . | . . . . . Storage 2 | 1 . . . 1 Processor . | . . . . . Hackware . | . . . . . Protection 7 | . 1 . 2 4 Artifact . | . . . . . Weapon 7 | 2 1 1 1 2 Energy Gun 1 | 1 . . . . Energy Cannon . | . . . . . Ballistic Gun 3 | 1 . 1 . 1 Ballistic Cannon 1 | . . . 1 . Launcher 1 | . 1 . . . Special Weapon . | . . . . . Impact Weapon . | . . . . . Slashing Weapon . | . . . . . Piercing Weapon . | . . . . . Special Melee Weapon 1 | . . . . 1 Unidentified Prototypes . | . . . . . Parts Lost 24 | . . 1 4 19 Power 5 | . . . 2 3 Propulsion 7 | . . . . 7 Utility 5 | . . . . 5 Weapon 7 | . . 1 2 4 Highest Loss Streak 6 | . . 1 3 6 To Critical Strikes . | . . . . . Average Backups 5 | 2 6 6 6 4 Power . | . 1 1 . . Propulsion 2 | 1 3 4 4 . Utility 1 | . . . 1 2 Weapon . | . 1 1 . . Tool/Special . | . . . . . Unused Backups 4 | . . . 4 . Power . | . . . . . Propulsion 4 | . . . 4 . Utility . | . . . . . Weapon . | . . . . . Tool/Special . | . . . . . Average Slot Usage (%) 87 | . 90 100 94 75 Engine 11 | . 14 14 10 9 Leg 18 | . . . 23 27 Wheel 12 | . 28 28 16 . Storage 11 | . 14 14 11 9 Protection 11 | . 4 14 11 13 Energy Gun 4 | . 3 . 4 6 Ballistic Gun 10 | . 14 23 11 3 Ballistic Cannon 2 | . . . 5 2 Launcher 2 | . 10 5 . . Peak Build Rating 26 | 6 7 7 22 26 Average Rating 14 | 4 6 6 15 20 On Entrance 8 | . 6 7 7 22 Avg Prop Armor Cover (%) 8 | . . . 8 . Naked Turns . | . . . . . Heaviest Build 71 | 13 17 17 25 71 Greatest Support 60 | 32 32 32 60 60 Greatest Overweight (x) 13 | . . . 1 13 Average Overweight (x) . | . . . . 1 Largest Inventory Capacity 20 | 8 8 8 8 20 Average Capacity 11 | 7 8 8 8 17 Most Carried 8 | 5 7 7 8 8 Average Carried 5 | 2 6 6 6 4 Final Capacity 20 | 8 8 8 8 20 Final Carried 8 | 5 7 6 8 1 Class Distribution -------------------- 100% | Mutant Dominant Class ---------------- Mutant | -10/Materials Mutant | -10/Mines Mutant | -9/Materials Mutant | -8/Materials Resources | -11 -10 -10 -9 -8 ----------- Run | Yrd Mat Min Mat Mat Matter Collected 532 | 238 19 57 166 52 Remotely . | . . . . . Salvage Created 402 | . 33 101 166 102 Parts 29 | . 1 8 13 7 Haulers Intercepted . | . . . . . Recyclers Shooed . | . . . . . Parts Field Recycled . | . . . . . Retrieved Matter . | . . . . . Parts Self-Destructed . | . . . . . Prevented . | . . . . . Parts Restored . | . . . . . Kills | -11 -10 -10 -9 -8 ------- Run | Yrd Mat Min Mat Mat Combat Hostiles Destroyed 13 | . 1 2 5 5 Guns 9 | . 1 2 2 4 Cannons 4 | . . . 3 1 Classes Destroyed 5 | . 2 1 2 . Watcher 1 | . 1 . . . Swarmer 5 | . . . 2 3 Grunt 4 | . 1 . 1 2 Brawler 1 | . . . 1 . Sentry 3 | . . 2 1 . Best Kill Streak 3 | . 2 1 2 3 Combat Bots Only 3 | . 1 1 2 3 Max Kills in Single Turn 2 | . 2 1 1 1 Gunslinging . | . . . . . Exploded . | . . . . . Melee . | . . . . . Uniques/NPCs Destroyed . | . . . . . Combat | -11 -10 -10 -9 -8 -------- Run | Yrd Mat Min Mat Mat Hostile Shots Fired 387 | . 2 22 125 238 Missed 109 | . . 8 47 54 Hits 278 | . 2 14 78 184 Projectile 278 | . 2 14 78 184 AOE 1 | . . . . 1 Critical Strikes 15 | . . . 2 13 Damage Taken 3875 | 13 22 199 907 2734 Core 717 | 12 . 13 137 555 Absorbed by Shields . | . . . . . Core Remaining (%) 83 | 95 . 90 65 . Volleys Fired 37 | . 2 5 20 10 Largest 2 | . 2 2 2 2 Hottest 80 | . 50 50 80 80 Shots Fired 70 | . 4 10 36 20 Gun 48 | . 2 9 23 14 Cannon 19 | . . . 13 6 Launcher 3 | . 2 1 . . Special . | . . . . . Kinetic 48 | . 2 9 27 10 Thermal 19 | . . . 9 10 Explosive 3 | . 2 1 . . Electromagnetic . | . . . . . Robot Hit Streak 7 | . 3 5 4 7 Robot Miss Streak 4 | . . 1 4 2 Penetration Max . | . . . . . Secondary Targets 1 | . . 1 . . Max Gunslinging Chain 1 | . . 1 . . Shots Hit Robots 49 | . 3 7 21 18 Core Hits 26 | . 3 6 10 7 Critical Kills . | . . . . . Critical Parts Destroyed . | . . . . . Critical Strikes 1 | . . . 1 . Blast 1 | . . . 1 . Melee Attacks 5 | . . . . 5 Impact . | . . . . . Slashing . | . . . . . Piercing . | . . . . . Sneak Attacks . | . . . . . Combat Hostiles . | . . . . . Follow-up Attacks . | . . . . . Damage Inflicted 639 | 3 84 78 243 231 Guns 323 | . 16 57 123 127 Cannons 172 | . . . 117 55 Explosions 89 | . 68 21 . . Melee . | . . . . . Ramming 55 | 3 . . 3 49 Kinetic 344 | . 16 57 190 81 Thermal 151 | . . . 50 101 Explosive 89 | . 68 21 . . Electromagnetic . | . . . . . Impact . | . . . . . Slashing . | . . . . . Piercing . | . . . . . Highest Corruption . | . . . . . Average Corruption . | . . . . . Corruption Purged . | . . . . . Corruption Blocked . | . . . . . Overload Shots . | . . . . . Overflow Damage . | . . . . . Projectiles . | . . . . . Explosions . | . . . . . Melee . | . . . . . Knockbacks 2 | . . . . 2 Impact . | . . . . . Kinetic 2 | . . . . 2 Secondary . | . . . . . Self-Inflicted Damage 1 | 1 . . . . Shots . | . . . . . Rammed 4 | 3 . . . 1 Targets Rammed 17 | 3 . . 1 13 Kicked 13 | . . . 1 12 Crushed . | . . . . . Highest Temperature 172 | . 16 25 166 172 Average Temperature 50 | . 9 9 62 49 Received Heat Transfer 1827 | . 12 81 303 1431 Siege Activations . | . . . . . Martial Activations . | . . . . . Shielding Activations . | . . . . . Robots Disrupted . | . . . . . Combat Hostiles . | . . . . . Robots Corrupted . | . . . . . Combat Hostiles . | . . . . . Parts Fried . | . . . . . Impact Corruptions . | . . . . . Robots Melted . | . . . . . Combat Hostiles . | . . . . . Parts Melted . | . . . . . Heat Transferred 444 | . . . 148 296 Parts Sabotaged . | . . . . . Parts Stolen . | . . . . . Parts Stripped . | . . . . . Power Chain Reactions . | . . . . . Alert | -11 -10 -10 -9 -8 ------- Run | Yrd Mat Min Mat Mat Maximum Alert Level . | . . . . . Low Security (%) 100 | 100 100 100 100 100 Level 1 . | . . . . . Level 2 . | . . . . . Level 3 . | . . . . . Level 4 . | . . . . . Level 5 . | . . . . . High Security . | . . . . . Max Security . | . . . . . Peak Influence 77 | . 40 20 65 77 Initial 10 | . . . . 10 Average 19 | . 12 8 32 20 Influence Increases 464 | . 40 47 165 212 Destroy 0b10 Robot/C 260 | . 20 40 100 100 Destroy 0b10 Robot/NC 5 | . 5 . . . Destroy Leader 42 | . 2 . 20 20 Successful Hack 2 | . . . . 2 Destroy Structure 20 | . 13 7 . . Lose Combat Pursuer 135 | . . . 45 90 Influence Decreases 464 | . 40 47 140 237 Entered New Map 15 | . . . . 15 Time Decay 292 | . 40 40 100 112 Lost Part 157 | . . 7 40 110 Squads Dispatched 5 | . . . . 5 Investigation 1 | . . . . 1 Extermination . | . . . . . Reinforcement 1 | . . . . 1 Assault . | . . . . . Garrison 3 | . . . . 3 Intercept . | . . . . . Searches Triggered . | . . . . . Construction Impeded . | . . . . . Haulers Reinforced . | . . . . . Active Scanning Responses . | . . . . . Cargo Convoy Interrupts . | . . . . . Stealth | -11 -10 -10 -9 -8 --------- Run | Yrd Mat Min Mat Mat Distress Signals . | . . . . . Communications Jammed . | . . . . . Distress Signals . | . . . . . Times Spotted 36 | . 2 2 13 19 Peak Tracking Total 6 | . 2 2 6 6 Tactical Retreats 7 | . . . 2 5 Traps | -11 -10 -10 -9 -8 ------- Run | Yrd Mat Min Mat Mat Traps Triggered 1 | . . . . 1 Indirectly . | . . . . . Trap Hack Attempts . | . . . . . Triggered . | . . . . . Disarmed . | . . . . . Reprogrammed . | . . . . . Reused . | . . . . . Traps Extracted . | . . . . . Installed . | . . . . . Triggered . | . . . . . Machines | -11 -10 -10 -9 -8 ---------- Run | Yrd Mat Min Mat Mat Machines Disabled . | . . . . . Max in Single Turn . | . . . . . Machines Repaired . | . . . . . Machines Dismantled . | . . . . . Machines Sabotaged . | . . . . . Overloaded Fab Kills . | . . . . . Hacking | -11 -10 -10 -9 -8 --------- Run | Yrd Mat Min Mat Mat Machines Accessed 1 | . . . . 1 Terminals 1 | . . . . 1 Fabricators . | . . . . . Repair Stations . | . . . . . Recycling Units . | . . . . . Scanalyzers . | . . . . . Garrison Access . | . . . . . Total Hacks 3 | . . . . 3 Successful 2 | . . . . 2 Failed 1 | . . . . 1 Catastrophic . | . . . . . Database Lockouts . | . . . . . Manual . | . . . . . Terminals 3 | . . . . 3 Fabricators . | . . . . . Repair Stations . | . . . . . Recycling Units . | . . . . . Scanalyzers . | . . . . . Garrison Access . | . . . . . Terminal Hacks 2 | . . . . 2 Record 2 | . . . . 2 Fabricator Hacks . | . . . . . Repair Station Hacks . | . . . . . Recycling Unit Hacks . | . . . . . Scanalyzer . | . . . . . Garrison Access Hacks . | . . . . . Unauthorized Hacks . | . . . . . Terminals . | . . . . . Fabricators . | . . . . . Repair Stations . | . . . . . Recycling Units . | . . . . . Scanalyzers . | . . . . . Garrison Access . | . . . . . Data Cores Recovered . | . . . . . Used . | . . . . . Hacking Detections 1 | . . . . 1 Full Trace Events . | . . . . . Feedback Events . | . . . . . Feedback Blocked . | . . . . . Robot Schematics Acquired . | . . . . . Robots Built . | . . . . . Authchips . | . . . . . Time . | . . . . . Total Robot Build Rating . | . . . . . Part Schematics Acquired . | . . . . . Parts Built . | . . . . . Authchips . | . . . . . Time . | . . . . . Total Part Build Rating . | . . . . . Part Studies Acquired . | . . . . . Parts Repaired . | . . . . . Time . | . . . . . Parts Recycled . | . . . . . Recycled Matter . | . . . . . Retrieved Matter . | . . . . . Retrieved Components . | . . . . . Parts Scanalyzed . | . . . . . Part Schematics Acquired . | . . . . . Parts Damaged . | . . . . . Bothacking | -11 -10 -10 -9 -8 ------------ Run | Yrd Mat Min Mat Mat Used RIF Installer . | . . . . . Robots Hacked 2 | . . . . 2 Non-combat . | . . . . . Combat 2 | . . . . 2 Robot Hacks Applied 3 | . . . . 3 parse_system 3 | . . . . 3 Relay Couplers Released . | . . . . . Fabnet Peak Effective % . | . . . . . Robots Rewired . | . . . . . Allies Hacked . | . . . . . Hacks Repelled . | . . . . . Allies | -11 -10 -10 -9 -8 -------- Run | Yrd Mat Min Mat Mat Total Allies . | . . . . . Largest Group . | . . . . . Highest-Rated Group . | . . . . . Highest-Rated Ally . | . . . . . Total Orders . | . . . . . Ally Attacks . | . . . . . Total Damage . | . . . . . Kills . | . . . . . Allies Corrupted . | . . . . . Allies Melted . | . . . . . Intel | -11 -10 -10 -9 -8 ------- Run | Yrd Mat Min Mat Mat Active Infowar (turns) . | . . . . . Robot Analysis Total . | . . . . . Derelict Logs Recovered 1 | . . 1 . . Drone Launches . | . . . . . Drone Recoveries . | . . . . . Exploration | -11 -10 -10 -9 -8 ------------- Run | Yrd Mat Min Mat Mat Turns Passed 951 | 77 109 124 268 373 Spaces Moved 588 | 59 98 110 166 155 Core 4 | 3 . . . 1 Treads . | . . . . . Legs 230 | . . . 76 154 Wheels 354 | 56 98 110 90 . Hover . | . . . . . Flight . | . . . . . Fastest Speed 50 | 50 100 100 93 112 Average Speed 124 | 97 100 100 107 186 Slowest Speed 700 | 100 100 100 190 700 Overloaded Moves . | . . . . . Propulsion Burnouts . | . . . . . Robots Hopped . | . . . . . Potential Cave-ins . | . . . . . Cave-ins Triggered . | . . . . . Exploration Rate (%) 16 | 4 20 26 14 17 Regions Visited 4 Branch Regions 1 Pre-discovered Areas . | . . . . . Known Exits Taken 1 | . . . 1 . Unknown Exits Taken 3 | 1 1 1 . . Scrap Searched . | . . . . . Spaces Dug . | . . . . . Terrain Destroyed 21 | . 14 7 . . Melee . | . . . . . Projectile . | . . . . . AOE 21 | . 14 7 . . Terrain Rammed . | . . . . . Walls Destroyed . | . . . . . Machines Disabled . | . . . . . Actions | -11 -10 -10 -9 -8 --------- Run | Yrd Mat Min Mat Mat Total 720 | 78 104 115 224 199 Wait . | . . . . . Move 584 | 58 97 109 165 155 Hop . | . . . . . Pick Up 34 | 11 3 . 16 4 Fast Attach 1 | . . . 1 . Attach 24 | 6 1 1 5 11 Detach . | . . . . . Swap 8 | . 1 . 6 1 Drop 10 | . . . 10 . Fire 37 | . 2 5 20 10 Melee 5 | . . . . 5 Ram 4 | 3 . . . 1 Kick 13 | . . . 1 12 Crush . | . . . . . Escape Stasis . | . . . . . Rewire . | . . . . . Trap . | . . . . . Miscellaneous . | . . . . . Route ------- -11/Scrapyard -10/Materials -10/Mines -9/Materials (discovered 2 exits: *Mat x2) -8/Materials History --------- Turn | Location | Event 50 | -11/Scrapyard | Discovered new exit (range 15) 78 | -11/Scrapyard | Entered Materials 129 | -10/Materials | Discovered new exit (range 15) 187 | -10/Materials | Entered Mines 209 | -10/Mines | Discovered new exit (range 12) 240 | -10/Mines | Learned 2 Materials zone layouts 304 | -10/Mines | Build established: Mutant 311 | -10/Mines | Entered Materials 311 | -9/Materials | Evolved 2 slots: Propulsion x2 312 | -9/Materials | Identified exit to Materials 472 | -9/Materials | Lost 3 parts (1p2w) 548 | -9/Materials | Discovered exit to Materials (range 7) 579 | -9/Materials | Entered another Materials area 579 | -8/Materials | Evolved 2 slots: Power x1, Utility x1 695 | -8/Materials | Garrison activated, responded to threat 741 | -8/Materials | Lost 5 parts (1p2n1u1w) 900 | -8/Materials | Lost 6 parts (2p1n1u2w) 928 | -8/Materials | Core integrity fell below 50% 947 | -8/Materials | Core integrity fell below 20% 952 | -8/Materials | Destroyed by Y-45 Defender with Beam Rifle Last Messages --------------- 00918_ VSS Leg destroyed. 00918_ Critical hit (Burn: +37). 00921_ Jacked Y-45 Defender... >>parse_system Reading system data... 00922_ Jacked Y-45 Defender... >>parse_system Reading system data... 00923_ Kicked Y-45 Defender. 00928_ Kicked Y-45 Defender out of the way. 00932_ Kicked Y-45 Defender. 00933_ Critical hit (Burn: +37). 00936_ Hvy. Armor Plating destroyed. 00937_ Kicked Y-45 Defender. 00938_ VSS Leg destroyed. 00940_ Slammed into Y-45 Defender. 00940_ Destabilizing: Core damaged (-22). 00948_ C-30 ARC bursts open, deploying its payload. 00948_ S-10 Pest unfolds itself. 00950_ Imp. Datajack destroyed. Map ----- +----------------------------------------------------+ | | | | | | | | | | | | | | | | | | | | | | | | | | | | | ?????????????????????????????????????????????????? | | ?????????????????????????????????????????????????? | | #????????########????????????????????????????????? | | ##???????# #???########?????????????????????? | | ##??????# #???# "" #?????????????????????? | | ##?????# #???# ""S #?????????????????????? | | #?????# #???# "" #?????????????????????? | | #?????# #???# #?????????????????????? | | #?????# #???# =#?????????????????????? | | # #?????####+###???# Y%% #?????????????????????? | | #??????# #???####g########## #??????????? | | ##??????# ##### %%@ s#??????????? | | ##??????# % Y s%#??????????? | | ! #??????# ##### k s#??????????? | | #??????# #???##+############ #??????????? | | " #??????### ###??? ????????????????????????? | | " #??#######+##??? ???????????????????????? | | " #??# #?? """ ??????????????????????? | | [#??# ! """ #?# """"" #?????????????????????? | | ####### """ #?#[ """"" #?????????????????????? | | # """ #?# """"" #?????????????????????? | | +% #?# ???????????????????????????? | | #### # """ #?# ????????????????????????????? | | # #% """ #?####????????????????????????????? | | + / """ #?????????????????????????????????? | | #### #?????????????????????????????????? | | #??##########?????????????????????????????????? | | #?????????????????????????????????????????????? | | #?????????????????????????????????????????????? | | ####?????????????????????????????????????????????? | | ?????????????????????????????????????????????????? | | ?????????????????????????????????????????????????? | | ?????????????????????????????????????????????????? | | ?????????????????????????????????????????????????? | | ?????????????????????????????????????????????????? | | ?????????????????????????????????????????????????? | +----------------------------------------------------+ Best States ------------- Heat Dissipation 31 Energy Generation 21 Energy Capacity 325 Matter Stores 300 Matter Capacity 300 Sight Range 16 Terrain Scan Density 10 Armor Coverage 600 Evasion (%) 55 Item Schematics ----------------- None Robot Schematics ------------------ None Fabricated ------------ Nothing Repaired ---------- Nothing Studied --------- None Alien Tech Used ----------------- None Achievements -------------- DATA ERROR: Steam Global Achievement% For Emergencies Only There's More Where That Came From Challenges ------------ None Game ------ Seed GatlingShieldThruster Manual? 0 Play Time 00:18:51 Cumulative 15.8 hours Start 2025.11.06 @ 21:38:11 End 2025.11.06 @ 22:00:35 Sessions 1 Manual Loads 0 Difficulty Rogue Special Mode None Game No. 24 Rogue 24 Adventurer 0 Explorer 0 Win Type - Total 0 Types 0/0/0/0/0/0/0/0/0/0 Lore% 8 Gallery% 15 Achievement% 8 Wizard Run 0 Options --------- Layout 0 ASCII 0 Keyboard 0 Movement Arrows Keybinds 0 Fullscreen 2 Font 18/SmallcapsGlow Map View 38x25 Zoom Use 97% Tactical HUD 1 Map Filters NONE Filters NONE Steam 1 RUN: 31cab70c-ce43-4c29-b440-fead4881ebff